[Event "Titled Tuesday Blitz August 15 Late 2023"]
[White "Klukin, Kirill"]
[Black "Grossboss19"]
[WhiteFideId "24199273"]
[WhiteElo "2826"]
[BlackElo "2548"]
[Result "1/2-1/2"]
[Round "3"]
[TimeControl "180+1"]
[Date "2023.08.15"]
[WhiteClock "0:00:07"]
[BlackClock "0:00:21"]
[Board "42"]

1. d4 {[%clk 0:03:00]}  Nf6 {[%clk 0:02:59]} 2. c4 {[%clk 0:03:00]}  e6 {[%clk 0:02:59]} 3. Nc3 {[%clk 0:03:01]}  Bb4 {[%clk 0:02:55]} 4. e3 {[%clk 0:03:00]}  O-O {[%clk 0:02:54]} 5. Bd2 {[%clk 0:02:59]}  c5 {[%clk 0:02:51]} 6. Nf3 {[%clk 0:02:59]}  cxd4 {[%clk 0:02:47]} 7. Nxd4 {[%clk 0:03:00]}  Nc6 {[%clk 0:02:46]} 8. Nc2 {[%clk 0:03:00]}  Be7 {[%clk 0:02:45]} 9. Be2 {[%clk 0:02:55]}  d5 {[%clk 0:02:44]} 10. O-O {[%clk 0:02:48]}  dxc4 {[%clk 0:02:41]} 11. Bxc4 {[%clk 0:02:43]}  b6 {[%clk 0:02:41]} 12. Qe2 {[%clk 0:02:38]}  Bb7 {[%clk 0:02:37]} 13. Rfd1 {[%clk 0:02:38]}  a6 {[%clk 0:02:34]} 14. a3 {[%clk 0:02:33]}  Qc7 {[%clk 0:02:33]} 15. Rac1 {[%clk 0:02:32]}  b5 {[%clk 0:02:30]} 16. Ba2 {[%clk 0:02:32]}  Rac8 {[%clk 0:02:28]} 17. Be1 {[%clk 0:02:16]}  Rfd8 {[%clk 0:02:20]} 18. f3 {[%clk 0:02:14]}  Rxd1 {[%clk 0:02:18]} 19. Rxd1 {[%clk 0:02:14]}  Rd8 {[%clk 0:02:17]} 20. Bg3 {[%clk 0:02:13]}  Qb6 {[%clk 0:02:09]} 21. Bf2 {[%clk 0:01:59]}  Rxd1+ {[%clk 0:02:07]} 22. Qxd1 {[%clk 0:01:59]}  Qd8 {[%clk 0:02:07]} 23. Qe2 {[%clk 0:01:58]}  Nd7 {[%clk 0:01:56]} 24. Bb1 {[%clk 0:01:20]}  g6 {[%clk 0:01:49]} 25. Ne4 {[%clk 0:00:59]}  Nc5 {[%clk 0:01:45]} 26. Nd4 {[%clk 0:00:53]}  Nxe4 {[%clk 0:01:25]} 27. Bxe4 {[%clk 0:00:42]}  Nxd4 {[%clk 0:01:24]} 28. exd4 {[%clk 0:00:43]}  Bd5 {[%clk 0:01:23]} 29. Qc2 {[%clk 0:00:43]}  Bf6 {[%clk 0:01:20]} 30. h3 {[%clk 0:00:40]}  Bxe4 {[%clk 0:01:10]} 31. Qxe4 {[%clk 0:00:38]}  Qd5 {[%clk 0:01:10]} 32. Qe3 {[%clk 0:00:34]}  Qa2 {[%clk 0:01:07]} 33. Qd2 {[%clk 0:00:29]}  h5 {[%clk 0:01:00]} 34. g4 {[%clk 0:00:29]}  hxg4 {[%clk 0:01:00]} 35. hxg4 {[%clk 0:00:29]}  Qd5 {[%clk 0:00:59]} 36. Qe3 {[%clk 0:00:29]}  Qc4 {[%clk 0:00:55]} 37. Qd2 {[%clk 0:00:25]}  Qd5 {[%clk 0:00:53]} 38. Qe3 {[%clk 0:00:19]}  a5 {[%clk 0:00:53]} 39. Kg2 {[%clk 0:00:19]}  a4 {[%clk 0:00:54]} 40. Qe4 {[%clk 0:00:15]}  Kf8 {[%clk 0:00:43]} 41. Qf4 {[%clk 0:00:11]}  Kg7 {[%clk 0:00:41]} 42. Qe3 {[%clk 0:00:05]}  Qb3 {[%clk 0:00:34]} 43. Qd2 {[%clk 0:00:04]}  Be7 {[%clk 0:00:31]} 44. Bg3 {[%clk 0:00:04]}  Bf6 {[%clk 0:00:29]} 45. Be5 {[%clk 0:00:04]}  Bxe5 {[%clk 0:00:29]} 46. dxe5 {[%clk 0:00:05]}  Qc4 {[%clk 0:00:26]} 47. Kg3 {[%clk 0:00:05]}  Qc5 {[%clk 0:00:25]} 48. Qf4 {[%clk 0:00:06]}  Qg1+ {[%clk 0:00:24]} 49. Kh3 {[%clk 0:00:06]}  Qh1+ {[%clk 0:00:24]} 50. Kg3 {[%clk 0:00:07]}  Qg1+ {[%clk 0:00:22]} 51. Kh3 {[%clk 0:00:06]}  Qh1+ {[%clk 0:00:20]} 52. Kg3 {[%clk 0:00:07]}  Qg1+ {[%clk 0:00:21]} 1/2-1/2


[Site "https://www.chess.com"]

[Event "Titled Tuesday Blitz August 15 Late 2023"]
[White "ArtemDyachuk"]
[Black "Kushko, Dmitriy"]
[BlackFideId "14162261"]
[WhiteElo "2535"]
[BlackElo "2752"]
[Result "1-0"]
[Round "3"]
[TimeControl "180+1"]
[Date "2023.08.15"]
[WhiteClock "0:00:43"]
[BlackClock "0:01:23"]
[Board "44"]

1. e4 {[%clk 0:03:00]}  g6 {[%clk 0:03:00]} 2. d4 {[%clk 0:03:00]}  Bg7 {[%clk 0:03:00]} 3. Nc3 {[%clk 0:02:59]}  d6 {[%clk 0:03:00]} 4. Be3 {[%clk 0:02:57]}  a6 {[%clk 0:03:01]} 5. Qd2 {[%clk 0:02:55]}  b5 {[%clk 0:03:01]} 6. a4 {[%clk 0:02:54]}  b4 {[%clk 0:03:00]} 7. Nd1 {[%clk 0:02:54]}  Bb7 {[%clk 0:02:58]} 8. f3 {[%clk 0:02:53]}  a5 {[%clk 0:02:58]} 9. c3 {[%clk 0:02:52]}  bxc3 {[%clk 0:02:58]} 10. Nxc3 {[%clk 0:02:53]}  Nd7 {[%clk 0:02:57]} 11. Bc4 {[%clk 0:02:51]}  e6 {[%clk 0:02:56]} 12. Nge2 {[%clk 0:02:48]}  Ne7 {[%clk 0:02:56]} 13. Bh6 {[%clk 0:02:43]}  O-O {[%clk 0:02:54]} 14. h4 {[%clk 0:02:40]}  d5 {[%clk 0:02:40]} 15. Bd3 {[%clk 0:01:55]}  dxe4 {[%clk 0:02:28]} 16. fxe4 {[%clk 0:01:56]}  c5 {[%clk 0:02:16]} 17. h5 {[%clk 0:01:49]}  Bxd4 {[%clk 0:01:57]} 18. hxg6 {[%clk 0:01:23]}  Nxg6 {[%clk 0:01:57]} 19. Nxd4 {[%clk 0:01:18]}  cxd4 {[%clk 0:01:57]} 20. Ne2 {[%clk 0:01:19]}  Nc5 {[%clk 0:01:46]} 21. Ng3 {[%clk 0:01:12]}  Nb3 {[%clk 0:01:39]} 22. Qf2 {[%clk 0:01:00]}  Nxa1 {[%clk 0:01:35]} 23. Nh5 {[%clk 0:01:00]}  f5 {[%clk 0:01:30]} 24. Bxf8 {[%clk 0:00:49]}  Qxf8 {[%clk 0:01:30]} 25. exf5 {[%clk 0:00:44]}  exf5 {[%clk 0:01:30]} 26. Bc4+ {[%clk 0:00:44]}  Kh8 {[%clk 0:01:23]} 27. Qxd4+ {[%clk 0:00:43]} 1-0


[Site "https://www.chess.com"]

[Event "Titled Tuesday Blitz August 15 Late 2023"]
[White "Kuznetsov, Felix"]
[Black "Poltorak, Sebastian"]
[WhiteFideId "34147990"]
[BlackFideId "1199498"]
[WhiteElo "2713"]
[BlackElo "2519"]
[Result "0-1"]
[Round "3"]
[TimeControl "180+1"]
[Date "2023.08.15"]
[WhiteClock "0:00:08"]
[BlackClock "0:00:13"]
[Board "46"]

1. e4 {[%clk 0:02:57]}  c5 {[%clk 0:02:59]} 2. Nf3 {[%clk 0:02:56]}  Nc6 {[%clk 0:02:59]} 3. d4 {[%clk 0:02:56]}  cxd4 {[%clk 0:03:00]} 4. Nxd4 {[%clk 0:02:56]}  Nf6 {[%clk 0:03:00]} 5. Nc3 {[%clk 0:02:57]}  e5 {[%clk 0:03:00]} 6. Ndb5 {[%clk 0:02:57]}  d6 {[%clk 0:03:00]} 7. Bg5 {[%clk 0:02:58]}  a6 {[%clk 0:02:59]} 8. Na3 {[%clk 0:02:59]}  b5 {[%clk 0:02:59]} 9. Nd5 {[%clk 0:02:59]}  Be7 {[%clk 0:02:59]} 10. Bxf6 {[%clk 0:03:00]}  Bxf6 {[%clk 0:02:59]} 11. c4 {[%clk 0:03:00]}  b4 {[%clk 0:02:59]} 12. Nc2 {[%clk 0:03:01]}  O-O {[%clk 0:02:59]} 13. Qf3 {[%clk 0:03:01]}  Bg5 {[%clk 0:02:53]} 14. h4 {[%clk 0:02:59]}  Bh6 {[%clk 0:02:51]} 15. g4 {[%clk 0:02:55]}  f6 {[%clk 0:02:52]} 16. Qg3 {[%clk 0:02:39]}  a5 {[%clk 0:02:47]} 17. Rd1 {[%clk 0:02:38]}  Be6 {[%clk 0:02:37]} 18. c5 {[%clk 0:02:11]}  dxc5 {[%clk 0:02:13]} 19. g5 {[%clk 0:01:55]}  fxg5 {[%clk 0:02:09]} 20. hxg5 {[%clk 0:01:51]}  Qxg5 {[%clk 0:01:31]} 21. Qxg5 {[%clk 0:01:44]}  Bxg5 {[%clk 0:01:32]} 22. Nc7 {[%clk 0:01:44]}  Bxa2 {[%clk 0:01:31]} 23. Nxa8 {[%clk 0:01:34]}  Bb3 {[%clk 0:01:21]} 24. Nc7 {[%clk 0:01:10]}  Bxc2 {[%clk 0:01:01]} 25. Bc4+ {[%clk 0:01:10]}  Kh8 {[%clk 0:00:59]} 26. Ne6 {[%clk 0:01:11]}  Bxe4 {[%clk 0:00:38]} 27. Rg1 {[%clk 0:00:58]}  Be7 {[%clk 0:00:17]} 28. Nxf8 {[%clk 0:00:56]}  Bxf8 {[%clk 0:00:18]} 29. Bd5 {[%clk 0:00:56]}  Bxd5 {[%clk 0:00:16]} 30. Rxd5 {[%clk 0:00:57]}  Nd4 {[%clk 0:00:17]} 31. Rd8 {[%clk 0:00:52]}  Kg8 {[%clk 0:00:15]} 32. Rg4 {[%clk 0:00:47]}  Kf7 {[%clk 0:00:15]} 33. Ra8 {[%clk 0:00:44]}  h5 {[%clk 0:00:11]} 34. Re4 {[%clk 0:00:43]}  Bd6 {[%clk 0:00:10]} 35. Rxa5 {[%clk 0:00:40]}  Ke6 {[%clk 0:00:11]} 36. Kf1 {[%clk 0:00:35]}  g5 {[%clk 0:00:09]} 37. Ra8 {[%clk 0:00:31]}  Kd5 {[%clk 0:00:09]} 38. Re1 {[%clk 0:00:31]}  h4 {[%clk 0:00:09]} 39. Rg8 {[%clk 0:00:29]}  Nf3 {[%clk 0:00:08]} 40. Re3 {[%clk 0:00:29]}  e4 {[%clk 0:00:09]} 41. Re8 {[%clk 0:00:26]}  Be5 {[%clk 0:00:08]} 42. Rd8+ {[%clk 0:00:26]}  Bd6 {[%clk 0:00:05]} 43. b3 {[%clk 0:00:26]}  h3 {[%clk 0:00:05]} 44. Rd7 {[%clk 0:00:10]}  Nd2+ {[%clk 0:00:05]} 45. Ke2 {[%clk 0:00:09]}  Nf3 {[%clk 0:00:06]} 46. Rh7 {[%clk 0:00:09]}  Nd4+ {[%clk 0:00:06]} 47. Kf1 {[%clk 0:00:08]}  h2 {[%clk 0:00:06]} 48. Kg2 {[%clk 0:00:09]}  Bf4 {[%clk 0:00:04]} 49. Re1 {[%clk 0:00:08]}  Ke5 {[%clk 0:00:05]} 50. Re7+ {[%clk 0:00:07]}  Ne6 {[%clk 0:00:05]} 51. Rxe6+ {[%clk 0:00:07]}  Kxe6 {[%clk 0:00:06]} 52. Rxe4+ {[%clk 0:00:07]}  Kd5 {[%clk 0:00:06]} 53. Rc4 {[%clk 0:00:08]}  Be5 {[%clk 0:00:05]} 54. f3 {[%clk 0:00:08]}  Bf4 {[%clk 0:00:06]} 55. Re4 {[%clk 0:00:07]}  Kd6 {[%clk 0:00:07]} 56. Re1 {[%clk 0:00:07]}  Kd5 {[%clk 0:00:07]} 57. Rd1+ {[%clk 0:00:07]}  Kc6 {[%clk 0:00:07]} 58. Kh3 {[%clk 0:00:07]}  Kb5 {[%clk 0:00:08]} 59. Kg2 {[%clk 0:00:03]}  c4 {[%clk 0:00:08]} 60. Rd5+ {[%clk 0:00:04]}  Kc6 {[%clk 0:00:08]} 61. bxc4 {[%clk 0:00:05]}  b3 {[%clk 0:00:03]} 62. Rb5 {[%clk 0:00:05]}  Kd6 {[%clk 0:00:04]} 63. Rxb3 {[%clk 0:00:05]}  Kc5 {[%clk 0:00:04]} 64. Rc3 {[%clk 0:00:05]}  Kd4 {[%clk 0:00:04]} 65. Rc2 {[%clk 0:00:04]}  Kd3 {[%clk 0:00:05]} 66. Ra2 {[%clk 0:00:02]}  Kxc4 {[%clk 0:00:05]} 67. Ra4+ {[%clk 0:00:02]}  Kd3 {[%clk 0:00:05]} 68. Ra8 {[%clk 0:00:02]}  Ke3 {[%clk 0:00:06]} 69. Re8+ {[%clk 0:00:03]}  Kd4 {[%clk 0:00:06]} 70. Re4+ {[%clk 0:00:03]}  Kd5 {[%clk 0:00:07]} 71. Re2 {[%clk 0:00:01]}  Kd6 {[%clk 0:00:07]} 72. Kh3 {[%clk 0:00:02]}  Kd5 {[%clk 0:00:07]} 73. Re1 {[%clk 0:00:01]}  Kd6 {[%clk 0:00:08]} 74. Kg4 {[%clk 0:00:02]}  Kd5 {[%clk 0:00:08]} 75. Kf5 {[%clk 0:00:03]}  Kd6 {[%clk 0:00:08]} 76. Rd1+ {[%clk 0:00:03]}  Ke7 {[%clk 0:00:09]} 77. Ke4 {[%clk 0:00:04]}  Kf6 {[%clk 0:00:09]} 78. Rb1 {[%clk 0:00:04]}  Kg6 {[%clk 0:00:10]} 79. Kd3 {[%clk 0:00:04]}  Kh5 {[%clk 0:00:10]} 80. Ke2 {[%clk 0:00:05]}  Kh4 {[%clk 0:00:11]} 81. Kf2 {[%clk 0:00:05]}  Kh5 {[%clk 0:00:11]} 82. Kg2 {[%clk 0:00:05]}  Kg6 {[%clk 0:00:11]} 83. Rb6+ {[%clk 0:00:06]}  Kf5 {[%clk 0:00:11]} 84. Rb7 {[%clk 0:00:06]}  Ke5 {[%clk 0:00:11]} 85. Rh7 {[%clk 0:00:07]}  Kf5 {[%clk 0:00:12]} 86. Rh8 {[%clk 0:00:07]}  Kg6 {[%clk 0:00:12]} 87. Rg8+ {[%clk 0:00:07]}  Kf5 {[%clk 0:00:12]} 88. Rh8 {[%clk 0:00:08]}  Kg6 {[%clk 0:00:12]} 89. Kf2 {[%clk 0:00:08]}  Kf5 {[%clk 0:00:13]} 90. Ke2 {[%clk 0:00:08]}  Kg6 {[%clk 0:00:10]} 91. Kd3 {[%clk 0:00:09]}  g4 {[%clk 0:00:10]} 92. fxg4 {[%clk 0:00:08]}  Bh6 {[%clk 0:00:11]} 93. g5 {[%clk 0:00:06]}  Kxg5 {[%clk 0:00:11]} 94. Rg8+ {[%clk 0:00:06]}  Kh5 {[%clk 0:00:12]} 95. Re8 {[%clk 0:00:06]}  h1=Q {[%clk 0:00:13]} 96. Re5+ {[%clk 0:00:07]}  Bg5 {[%clk 0:00:12]} 97. Re2 {[%clk 0:00:07]}  Qd5+ {[%clk 0:00:12]} 98. Kc2 {[%clk 0:00:08]}  Qc4+ {[%clk 0:00:13]} 99. Kd1 {[%clk 0:00:08]}  Qc1# {[%clk 0:00:13]} 0-1


[Site "https://www.chess.com"]

[Event "Titled Tuesday Blitz August 15 Late 2023"]
[White "Martin Barcelo, Carles"]
[Black "Gubajdullin, Alexei"]
[WhiteFideId "24561444"]
[BlackFideId "4141202"]
[WhiteElo "2512"]
[BlackElo "2710"]
[Result "1-0"]
[Round "3"]
[TimeControl "180+1"]
[Date "2023.08.15"]
[WhiteClock "0:00:41"]
[BlackClock "0:01:27"]
[Board "47"]

1. e4 {[%clk 0:02:56]}  g6 {[%clk 0:02:59]} 2. d4 {[%clk 0:02:54]}  d6 {[%clk 0:02:59]} 3. h4 {[%clk 0:02:52]}  h6 {[%clk 0:02:57]} 4. h5 {[%clk 0:02:51]}  g5 {[%clk 0:02:57]} 5. Be3 {[%clk 0:02:51]}  Bg7 {[%clk 0:02:57]} 6. Bd3 {[%clk 0:02:46]}  c5 {[%clk 0:02:55]} 7. c3 {[%clk 0:02:46]}  cxd4 {[%clk 0:02:53]} 8. cxd4 {[%clk 0:02:46]}  Nc6 {[%clk 0:02:53]} 9. Ne2 {[%clk 0:02:45]}  Nf6 {[%clk 0:02:51]} 10. Nbc3 {[%clk 0:02:43]}  Ng4 {[%clk 0:02:50]} 11. Qd2 {[%clk 0:02:41]}  Nxe3 {[%clk 0:02:49]} 12. Qxe3 {[%clk 0:02:42]}  Bg4 {[%clk 0:02:42]} 13. f3 {[%clk 0:02:39]}  Bd7 {[%clk 0:02:42]} 14. O-O {[%clk 0:02:24]}  O-O {[%clk 0:02:27]} 15. Rac1 {[%clk 0:02:03]}  Qb6 {[%clk 0:02:17]} 16. Nd5 {[%clk 0:01:56]}  Qxb2 {[%clk 0:02:16]} 17. Rb1 {[%clk 0:01:14]}  Qa3 {[%clk 0:02:14]} 18. Rxb7 {[%clk 0:01:09]}  Rad8 {[%clk 0:02:11]} 19. e5 {[%clk 0:01:00]}  dxe5 {[%clk 0:02:04]} 20. Bh7+ {[%clk 0:01:00]}  Kxh7 {[%clk 0:01:56]} 21. Qxa3 {[%clk 0:01:00]}  Bc8 {[%clk 0:01:47]} 22. Rc7 {[%clk 0:00:48]}  Nxd4 {[%clk 0:01:39]} 23. Nxd4 {[%clk 0:00:48]}  exd4 {[%clk 0:01:39]} 24. Qxe7 {[%clk 0:00:41]}  Rxd5 {[%clk 0:01:36]} 25. Qe4+ {[%clk 0:00:41]}  Rf5 {[%clk 0:01:27]} 26. Rxc8 {[%clk 0:00:41]} 1-0


[Site "https://www.chess.com"]

[Event "Titled Tuesday Blitz August 15 Late 2023"]
[White "Reprintsev, Alexander"]
[Black "Leiva, Gianmarco"]
[WhiteFideId "14100541"]
[BlackFideId "3804399"]
[WhiteElo "2508"]
[BlackElo "2707"]
[Result "0-1"]
[Round "3"]
[TimeControl "180+1"]
[Date "2023.08.15"]
[WhiteClock "0:00:10"]
[BlackClock "0:00:12"]
[Board "48"]

1. e4 {[%clk 0:02:58]}  c5 {[%clk 0:02:59]} 2. b3 {[%clk 0:02:56]}  d5 {[%clk 0:02:47]} 3. exd5 {[%clk 0:02:55]}  Qxd5 {[%clk 0:02:48]} 4. Nc3 {[%clk 0:02:55]}  Qe5+ {[%clk 0:02:38]} 5. Be2 {[%clk 0:02:53]}  Nf6 {[%clk 0:02:37]} 6. Nf3 {[%clk 0:02:52]}  Qc7 {[%clk 0:02:35]} 7. Bb2 {[%clk 0:02:28]}  Nc6 {[%clk 0:02:30]} 8. d4 {[%clk 0:02:22]}  e6 {[%clk 0:02:21]} 9. d5 {[%clk 0:02:14]}  exd5 {[%clk 0:02:20]} 10. Nxd5 {[%clk 0:02:14]}  Nxd5 {[%clk 0:02:20]} 11. Qxd5 {[%clk 0:02:14]}  Be6 {[%clk 0:02:20]} 12. Qg5 {[%clk 0:02:11]}  f6 {[%clk 0:02:18]} 13. Qe3 {[%clk 0:02:08]}  Kf7 {[%clk 0:02:00]} 14. O-O-O {[%clk 0:02:07]}  Bd6 {[%clk 0:02:01]} 15. Kb1 {[%clk 0:01:38]}  Rad8 {[%clk 0:02:01]} 16. h4 {[%clk 0:01:28]}  Rhe8 {[%clk 0:02:01]} 17. Qc3 {[%clk 0:01:22]}  Kg8 {[%clk 0:01:55]} 18. Bc4 {[%clk 0:01:21]}  Kh8 {[%clk 0:01:38]} 19. Rhe1 {[%clk 0:01:18]}  Bg4 {[%clk 0:01:38]} 20. Rxe8+ {[%clk 0:00:59]}  Rxe8 {[%clk 0:01:38]} 21. Bb5 {[%clk 0:00:59]}  a6 {[%clk 0:00:48]} 22. Bxc6 {[%clk 0:00:59]}  Qxc6 {[%clk 0:00:49]} 23. a4 {[%clk 0:00:59]}  b5 {[%clk 0:00:39]} 24. axb5 {[%clk 0:00:57]}  axb5 {[%clk 0:00:40]} 25. Qd3 {[%clk 0:00:54]}  Bf8 {[%clk 0:00:37]} 26. Qd5 {[%clk 0:00:41]}  Qxd5 {[%clk 0:00:26]} 27. Rxd5 {[%clk 0:00:41]}  Re2 {[%clk 0:00:27]} 28. Rd8 {[%clk 0:00:39]}  Kg8 {[%clk 0:00:27]} 29. b4 {[%clk 0:00:34]}  Kf7 {[%clk 0:00:17]} 30. bxc5 {[%clk 0:00:32]}  Bxc5 {[%clk 0:00:18]} 31. Nd4 {[%clk 0:00:30]}  Rxf2 {[%clk 0:00:17]} 32. Nxb5 {[%clk 0:00:19]}  Bf5 {[%clk 0:00:16]} 33. Bd4 {[%clk 0:00:18]}  Rxc2 {[%clk 0:00:15]} 34. Ka1 {[%clk 0:00:15]}  Be7 {[%clk 0:00:13]} 35. Bb2 {[%clk 0:00:13]}  Bxd8 {[%clk 0:00:12]} 36. Nd6+ {[%clk 0:00:10]}  Ke6 {[%clk 0:00:12]} 0-1


[Site "https://www.chess.com"]

[Event "Titled Tuesday Blitz August 15 Late 2023"]
[White "Bjelobrk, Igor"]
[Black "Arencibia Monduy, Antonio"]
[WhiteFideId "4300726"]
[BlackFideId "3507939"]
[WhiteElo "2666"]
[BlackElo "2472"]
[Result "1-0"]
[Round "3"]
[TimeControl "180+1"]
[Date "2023.08.15"]
[WhiteClock "0:00:15"]
[BlackClock "0:00:00"]
[Board "49"]

1. d4 {[%clk 0:02:57]}  Nf6 {[%clk 0:02:59]} 2. c4 {[%clk 0:02:52]}  e6 {[%clk 0:02:59]} 3. g3 {[%clk 0:02:51]}  d5 {[%clk 0:02:59]} 4. Nf3 {[%clk 0:02:49]}  Be7 {[%clk 0:02:56]} 5. Bg2 {[%clk 0:02:45]}  O-O {[%clk 0:02:57]} 6. O-O {[%clk 0:02:45]}  Ne4 {[%clk 0:02:37]} 7. Qc2 {[%clk 0:02:39]}  c6 {[%clk 0:02:36]} 8. b3 {[%clk 0:02:24]}  f5 {[%clk 0:02:33]} 9. Bb2 {[%clk 0:02:24]}  Nd7 {[%clk 0:02:32]} 10. e3 {[%clk 0:02:22]}  Ndf6 {[%clk 0:02:27]} 11. Ne5 {[%clk 0:02:12]}  Nd7 {[%clk 0:02:28]} 12. Nd3 {[%clk 0:02:11]}  Ndf6 {[%clk 0:02:06]} 13. f3 {[%clk 0:02:08]}  Nd6 {[%clk 0:02:03]} 14. Nd2 {[%clk 0:02:04]}  Nf7 {[%clk 0:02:02]} 15. e4 {[%clk 0:02:02]}  dxe4 {[%clk 0:02:00]} 16. fxe4 {[%clk 0:02:02]}  Ng4 {[%clk 0:01:55]} 17. Rae1 {[%clk 0:01:59]}  Bf6 {[%clk 0:01:41]} 18. Nf3 {[%clk 0:01:53]}  fxe4 {[%clk 0:01:30]} 19. Rxe4 {[%clk 0:01:52]}  Ngh6 {[%clk 0:01:30]} 20. Nf4 {[%clk 0:01:32]}  Ng5 {[%clk 0:01:18]} 21. Nxg5 {[%clk 0:01:31]}  Bxg5 {[%clk 0:01:18]} 22. Nxe6 {[%clk 0:01:16]}  Rxf1+ {[%clk 0:01:17]} 23. Bxf1 {[%clk 0:01:14]}  Bxe6 {[%clk 0:01:17]} 24. Rxe6 {[%clk 0:01:14]}  Qd7 {[%clk 0:01:06]} 25. Qe4 {[%clk 0:01:13]}  Rf8 {[%clk 0:00:30]} 26. c5 {[%clk 0:00:52]}  Nf5 {[%clk 0:00:16]} 27. Bc4 {[%clk 0:00:49]}  Kh8 {[%clk 0:00:15]} 28. Re5 {[%clk 0:00:21]}  Bh6 {[%clk 0:00:11]} 29. d5 {[%clk 0:00:20]}  cxd5 {[%clk 0:00:10]} 30. Rxd5 {[%clk 0:00:19]}  Qc7 {[%clk 0:00:07]} 31. Rxf5 {[%clk 0:00:18]}  Rd8 {[%clk 0:00:03]} 32. Bd4 {[%clk 0:00:16]}  Qc8 {[%clk 0:00:02]} 33. Bd5 {[%clk 0:00:16]}  Re8 {[%clk 0:00:02]} 34. Re5 {[%clk 0:00:16]}  Rf8 {[%clk 0:00:02]} 35. Re6 {[%clk 0:00:15]}  Qd8 {[%clk 0:00:02]} 36. b4 {[%clk 0:00:15]}  Bg5 {[%clk 0:00:01]} 37. Kg2 {[%clk 0:00:15]}  h6 {[%clk 0:00:01]} 38. h4 {[%clk 0:00:15]}  Bf6 {[%clk 0:00:01]} 39. Bxf6 {[%clk 0:00:14]}  Rxf6 {[%clk 0:00:01]} 40. Re8+ {[%clk 0:00:15]}  Rf8 {[%clk 0:00:01]} 41. Rxd8 {[%clk 0:00:15]}  Rxd8 {[%clk 0:00:02]} 42. Bxb7 {[%clk 0:00:15]}  a5 {[%clk 0:00:02]} 43. b5 {[%clk 0:00:15]}  Re8 {[%clk 0:00:00]} 44. Qxe8+ {[%clk 0:00:15]} 1-0


[Site "https://www.chess.com"]

[Event "Titled Tuesday Blitz August 15 Late 2023"]
[White "Romero Ruscalleda, Josep"]
[Black "Rastbod, Ali"]
[WhiteFideId "2231859"]
[BlackFideId "12567477"]
[WhiteElo "2450"]
[BlackElo "2665"]
[Result "0-1"]
[Round "3"]
[TimeControl "180+1"]
[Date "2023.08.15"]
[WhiteClock "0:00:11"]
[BlackClock "0:01:26"]
[Board "50"]

1. e4 {[%clk 0:03:00]}  c6 {[%clk 0:02:59]} 2. Nc3 {[%clk 0:03:00]}  d5 {[%clk 0:03:00]} 3. Nf3 {[%clk 0:03:00]}  a6 {[%clk 0:02:56]} 4. d4 {[%clk 0:02:57]}  Bg4 {[%clk 0:02:52]} 5. h3 {[%clk 0:02:56]}  Bxf3 {[%clk 0:02:52]} 6. Qxf3 {[%clk 0:02:56]}  e6 {[%clk 0:02:49]} 7. g3 {[%clk 0:02:53]}  Nf6 {[%clk 0:02:46]} 8. exd5 {[%clk 0:02:49]}  cxd5 {[%clk 0:02:46]} 9. Bg2 {[%clk 0:02:47]}  Nc6 {[%clk 0:02:44]} 10. Be3 {[%clk 0:02:46]}  Bb4 {[%clk 0:02:43]} 11. O-O {[%clk 0:02:45]}  Bxc3 {[%clk 0:02:44]} 12. bxc3 {[%clk 0:02:43]}  O-O {[%clk 0:02:44]} 13. Rab1 {[%clk 0:02:40]}  Na5 {[%clk 0:02:44]} 14. Bg5 {[%clk 0:02:27]}  h6 {[%clk 0:02:44]} 15. Bxf6 {[%clk 0:02:24]}  Qxf6 {[%clk 0:02:45]} 16. Qxf6 {[%clk 0:02:23]}  gxf6 {[%clk 0:02:46]} 17. Rfe1 {[%clk 0:02:13]}  Rac8 {[%clk 0:02:43]} 18. Re3 {[%clk 0:02:13]}  Rc7 {[%clk 0:02:41]} 19. Bf1 {[%clk 0:01:46]}  Rfc8 {[%clk 0:02:38]} 20. Rf3 {[%clk 0:01:43]}  Kg7 {[%clk 0:02:38]} 21. Rb6 {[%clk 0:01:33]}  Rxc3 {[%clk 0:02:13]} 22. Bd3 {[%clk 0:01:33]}  R8c6 {[%clk 0:02:04]} 23. Rb4 {[%clk 0:01:26]}  Ra3 {[%clk 0:01:56]} 24. Rb2 {[%clk 0:01:16]}  b5 {[%clk 0:01:57]} 25. Kg2 {[%clk 0:01:12]}  Rcc3 {[%clk 0:01:56]} 26. h4 {[%clk 0:01:02]}  f5 {[%clk 0:01:48]} 27. Kh3 {[%clk 0:00:54]}  Nc4 {[%clk 0:01:43]} 28. Rb3 {[%clk 0:00:50]}  Nd2 {[%clk 0:01:36]} 29. Rxc3 {[%clk 0:00:44]}  Rxc3 {[%clk 0:01:37]} 30. Re3 {[%clk 0:00:40]}  h5 {[%clk 0:01:28]} 31. Be2 {[%clk 0:00:19]}  Rxe3 {[%clk 0:01:25]} 32. fxe3 {[%clk 0:00:19]}  Kg6 {[%clk 0:01:26]} 33. Kg2 {[%clk 0:00:18]}  Nb1 {[%clk 0:01:26]} 34. a4 {[%clk 0:00:16]}  bxa4 {[%clk 0:01:26]} 35. Bxa6 {[%clk 0:00:16]}  a3 {[%clk 0:01:26]} 36. c4 {[%clk 0:00:16]}  a2 {[%clk 0:01:26]} 37. cxd5 {[%clk 0:00:16]}  exd5 {[%clk 0:01:26]} 38. Bb7 {[%clk 0:00:13]}  Nc3 {[%clk 0:01:25]} 39. Bxd5 {[%clk 0:00:11]}  Nxd5 {[%clk 0:01:26]} 0-1


[Site "https://www.chess.com"]